fUST/lending_fUST_20241106
["ID","MTS","AMOUNT","RATE_DAILY","PERIOD"]
[341459132,1730905851493,-151.0,0.00031482,7]
[341459133,1730905851503,-151.0,0.00031482,7]
[341459134,1730905851601,-151.0,0.00031482,7]
[341459135,1730905851614,-151.0,0.00031482,7]
[341459136,1730905851624,-151.0,0.00031482,7]
[341459137,1730905851633,-151.0,0.00031482,7]
[341459138,1730905851642,-151.0,0.00031482,7]
[341459139,1730905851652,-151.0,0.00031482,7]
[341459140,1730905851662,-151.0,0.00031482,7]
[341459141,1730905851671,-264.445248,0.00031482,7]
[341459142,1730905851680,-151.0,0.00031482,7]
[341459143,1730905851690,-151.0,0.00031482,7]
[341459144,1730905851699,-151.0,0.00031482,7]
[341459145,1730905851709,-151.0,0.00031482,7]
[341459146,1730905851718,-151.0,0.00031482,7]
[341459147,1730905851728,-151.0,0.00031482,7]
[341459148,1730905851737,-151.0,0.00031482,7]
[341459149,1730905851747,-151.0,0.00031482,7]
[341459150,1730905851757,-182.50853819,0.00031482,7]
[341459151,1730905851770,-151.0,0.00031482,7]
[341459152,1730905851779,-151.0,0.00031482,7]
[341459153,1730905851789,-151.0,0.00031482,7]
[341459154,1730905851802,-251.09854,0.00031482,7]
[341459155,1730905851812,-151.0,0.00031482,7]
[341459156,1730905851821,-151.0,0.00031482,7]
[341459157,1730905851831,-548.92,0.00031506,2]
[341459158,1730905851840,-915.84,0.00031506,2]
[341459159,1730905851851,-1078.5,0.00031506,2]
[341459160,1730905851861,-523.0,0.00031557,2]
[341459161,1730905851872,-151.0,0.00031581,7]
[341459162,1730905851883,-151.0,0.00031581,3]
[341459163,1730905851894,-154.658246,0.00031581,7]
[341459164,1730905851908,-151.0,0.00031581,7]
[341459165,1730905851918,-151.0,0.00031581,7]
[341459166,1730905851927,-151.0,0.00031581,7]
[341459167,1730905851937,-151.0,0.00031581,7]
[341459168,1730905851950,-213.32,0.000316,14]
[341459169,1730905851960,-760.08,0.000316,30]
[341459170,1730905851970,-190.12,0.000316,14]
[341459171,1730905851982,-1559.23,0.000316,14]
[341459172,1730905851991,-1000.0,0.00031627,2]
[341459173,1730905852000,-1000.0,0.0003166,2]
[341459174,1730905852010,-3000.0,0.000317,9]
[341459175,1730905852019,-3000.0,0.0003171,9]
[341459176,1730905852030,-3000.0,0.0003172,9]
[341459177,1730905852040,-3000.0,0.0003173,9]
[341459178,1730905852052,-3000.0,0.0003174,9]
[341459179,1730905852062,-3000.0,0.0003175,9]
[341459180,1730905852073,-3000.0,0.0003176,9]
[341459181,1730905852085,-3000.0,0.0003177,9]
[341459182,1730905852095,-3000.0,0.0003178,9]
[341459183,1730905852105,-548.92,0.0003178,2]
[341459184,1730905852114,-915.84,0.0003178,2]
[341459185,1730905852125,-1078.5,0.0003178,2]
[341459186,1730905852135,-1000.0,0.00031787,2]
[341459187,1730905852145,-3000.0,0.0003179,9]
[341459188,1730905852157,-794.82,0.000318,30]
[341459189,1730905852167,-2258.22,0.000318,2]
[341459190,1730905852178,-3000.0,0.000318,9]
[341459191,1730905852189,-151.0,0.000318,7]
[341459192,1730905852198,-151.0,0.000318,7]
[341459193,1730905852209,-151.0,0.000318,7]
[341459194,1730905852219,-407808.58119784,0.000318,2]
[341459195,1730905852855,159.624531,0.00013973,2]
[341459214,1730906082874,1169.27083333,0.0002082,2]
[341459215,1730906410242,163.060385,0.00013973,2]
[341459217,1730906413284,154.312,0.00016595,2]
[341459218,1730906490146,3356.708504,0.00034288,30]
[341459227,1730906695538,1169.27083333,0.0002082,2]
[341459232,1730906762944,5053.77,0.0002082,2]
[341459308,1730906975749,177.030263,0.00013973,2]
[341459446,1730907032829,-430.0,0.00021918,10]
[341459614,1730907044882,-4623.0,0.00021918,10]
[341459615,1730907044895,-18323.46977546,0.00025,2]
[341459616,1730907044906,-302.59127799,0.00025999,2]
[341459617,1730907044917,-500.0,0.00025999,2]
[341459618,1730907044927,-500.0,0.00025999,2]
[341459619,1730907044939,-500.0,0.00025999,2]
[341459620,1730907044948,-251.3507641,0.00026,2]
[341459621,1730907044959,-34606.95618439,0.00026,2]
[341459622,1730907044970,-1169.27083333,0.00027373,2]
[341459623,1730907044981,-500.0,0.00027397,2]
[341459624,1730907044991,-500.0,0.00027397,2]
[341459625,1730907045001,-500.0,0.00027397,2]
[341459626,1730907045011,-500.0,0.00027397,2]
[341459627,1730907045023,-500.0,0.00027397,2]
[341459628,1730907045033,-430.08687153,0.00027397,2]
[341459629,1730907045043,-500.0,0.00027397,2]
[341459630,1730907045053,-500.0,0.00027397,2]
[341459631,1730907045062,-48.25686164,0.00027397,2]
[341459690,1730907046082,-451.74313836,0.00027397,2]
[341459692,1730907046092,-500.0,0.00027397,2]
[341459694,1730907046103,-500.0,0.00027397,2]
[341459696,1730907046114,-508.77867767,0.00027397,2]
[341459698,1730907046124,-500.0,0.00027397,2]
[341459700,1730907046135,-500.0,0.00027397,2]
[341459702,1730907046146,-500.0,0.00027397,2]
[341459704,1730907046156,-500.0,0.00027397,2]
[341459706,1730907046166,-608.90544956,0.00027397,2]
[341459708,1730907046176,-387.9693311,0.00027397,2]
[341459710,1730907046188,-500.0,0.00027397,2]
[341459713,1730907046199,-500.0,0.00027397,2]
[341459715,1730907046211,-500.0,0.00027397,2]
[341459717,1730907046220,-500.0,0.00027397,2]
[341459719,1730907046232,-302.22606353,0.00027397,2]
[341459721,1730907046243,-500.0,0.00027397,2]
[341459735,1730907046376,-500.0,0.00027397,2]
[341459737,1730907046394,-500.0,0.00027397,2]
[341459738,1730907046405,-500.0,0.00027397,2]
[341459739,1730907046415,-500.0,0.00027397,2]
[341459740,1730907046425,-357.27833734,0.00027397,2]
[341459741,1730907046436,-500.0,0.00027397,2]
[341459742,1730907046447,-500.0,0.00027397,2]
[341459743,1730907046456,-500.0,0.00027397,2]
[341459744,1730907046469,-500.0,0.00027397,2]
[341459745,1730907046480,-500.0,0.00027397,2]
[341459746,1730907046491,-500.0,0.00027397,2]
[341459747,1730907046501,-500.0,0.00027397,2]
[341459748,1730907046511,-504.43966699,0.00027397,2]
[341459749,1730907046521,-500.0,0.00027397,2]
[341459750,1730907046530,-500.0,0.00027397,2]
[341459751,1730907046540,-500.0,0.00027397,2]
[341459752,1730907046550,-500.0,0.00027397,2]
[341459753,1730907046562,-500.0,0.00027397,2]
[341459754,1730907046571,-614.16548677,0.00027397,2]
[341459755,1730907046581,-500.0,0.00027397,2]
[341459756,1730907046591,-500.0,0.00027397,2]
[341459757,1730907046600,-500.0,0.00027397,2]
[341459758,1730907046611,-500.0,0.00027397,2]
[341459759,1730907046623,-190.59226667,0.00027397,2]
[341459760,1730907046632,-500.0,0.00027397,2]
[341459761,1730907046642,-500.0,0.00027397,2]
[341459762,1730907046651,-500.0,0.00027397,2]
[341459763,1730907046661,-500.0,0.00027397,2]
[341459764,1730907046672,-500.0,0.00027397,2]
[341459765,1730907046682,-500.0,0.00027397,2]
[341459766,1730907046692,-500.0,0.00027397,2]
[341459767,1730907046702,-500.0,0.00027397,2]
[341459768,1730907046711,-500.0,0.00027397,2]
[341459769,1730907046720,-500.0,0.00027397,2]
[341459770,1730907046730,-500.0,0.00027397,2]
[341459771,1730907046739,-500.0,0.00027397,2]
[341459772,1730907046748,-500.0,0.00027397,2]
[341459773,1730907046757,-500.0,0.00027397,2]
[341459774,1730907046766,-500.0,0.00027397,2]
[341459775,1730907046775,-332.15650539,0.00027397,2]
[341459776,1730907046785,-500.0,0.00027397,2]
[341459777,1730907046795,-500.0,0.00027397,2]
[341459778,1730907046805,-500.0,0.00027397,2]
[341459779,1730907046814,-500.0,0.00027397,2]
[341459780,1730907046823,-500.0,0.00027397,2]
[341459781,1730907046832,-500.0,0.00027397,2]
[341459782,1730907046842,-500.0,0.00027397,2]
[341459783,1730907046851,-500.0,0.00027397,2]
[341459784,1730907046860,-500.0,0.00027397,2]
[341459785,1730907046870,-500.0,0.00027397,2]
[341459786,1730907046879,-500.0,0.00027397,2]
[341459787,1730907046889,-500.0,0.00027397,2]
[341459788,1730907046898,-500.0,0.00027397,2]
[341459789,1730907046908,-500.0,0.00027397,2]
[341459791,1730907046918,-500.0,0.00027397,2]
[341459792,1730907046927,-500.0,0.00027397,2]
[341459793,1730907046936,-435.17107247,0.00027397,2]
[341459794,1730907046945,-500.0,0.00027397,2]
[341459796,1730907046955,-500.0,0.00027397,2]
[341459797,1730907046965,-500.0,0.00027397,2]
[341459798,1730907046974,-500.0,0.00027397,2]
[341459799,1730907046984,-500.0,0.00027397,2]
[341459800,1730907046993,-500.0,0.00027397,2]
[341459801,1730907047002,-500.0,0.00027397,2]
[341459802,1730907047012,-500.0,0.00027397,2]
[341459803,1730907047021,-500.0,0.00027397,2]
[341459804,1730907047031,-500.0,0.00027397,2]
[341459805,1730907047040,-500.0,0.00027397,2]
[341459806,1730907047050,-500.0,0.00027671,2]
[341459807,1730907047059,-500.0,0.00027671,2]
[341459808,1730907047069,-500.0,0.00027671,2]
[341459809,1730907047079,-296.51,0.00027671,2]
[341459810,1730907047089,-500.0,0.00027671,2]
[341459811,1730907047098,-500.0,0.00027671,2]
[341459812,1730907047108,-500.0,0.00027671,2]
[341459813,1730907047118,-500.0,0.00027671,2]
[341459814,1730907047127,-500.0,0.00027671,2]
[341459815,1730907047136,-500.0,0.00027671,2]
[341459817,1730907047145,-500.0,0.00027671,2]
[341459818,1730907047154,-500.0,0.00027845,2]
[341459819,1730907047164,-500.0,0.00027945,2]
[341459820,1730907047173,-500.0,0.00027945,2]
[341459822,1730907047182,-500.0,0.00027945,2]
[341459823,1730907047191,-500.0,0.00027945,2]
[341459824,1730907047201,-500.0,0.00027945,2]
[341459825,1730907047211,-296.02,0.00027945,2]
[341459826,1730907047220,-500.0,0.00027945,2]
[341459827,1730907047229,-500.0,0.00027945,2]
[341459828,1730907047239,-26441.52959135,0.0002799,2]
[341459829,1730907047248,-500.0,0.00028169,2]
[341459830,1730907047257,-500.0,0.00028169,5]
[341459831,1730907047267,-116.84746137,0.00028218,2]
[341459832,1730907047282,-383.15253863,0.00028218,2]
[341459833,1730907047291,-500.0,0.00028218,2]
[341459834,1730907047301,-509.65282591,0.00028218,2]
[341459835,1730907047311,-503.51226375,0.00028218,2]
[341459836,1730907047320,-500.0,0.00028218,2]
[341459837,1730907047330,-500.0,0.00028218,2]
[341459838,1730907047339,-500.0,0.00028218,2]
[341459839,1730907047348,-500.0,0.00028218,2]
[341459840,1730907047360,-500.0,0.00028218,2]
[341459841,1730907047369,-505.79991445,0.00028218,2]
[341459842,1730907047378,-500.0,0.00028218,2]
[341459843,1730907047388,-500.0,0.00028218,2]
[341459844,1730907047398,-278.19012656,0.00028218,2]
[341459845,1730907047408,-500.0,0.00028218,2]
[341459846,1730907047417,-500.0,0.00028218,2]
[341459847,1730907047426,-500.0,0.00028218,2]
[341459848,1730907047435,-173.13162585,0.00028218,2]
[341459849,1730907047445,-500.0,0.00028218,2]
[341459850,1730907047454,-500.0,0.00028218,2]
[341459851,1730907047466,-500.0,0.00028218,2]
[341459852,1730907047478,-506.43910854,0.00028218,2]
[341459853,1730907047488,-500.0,0.00028218,2]
[341459854,1730907047498,-500.0,0.00028218,2]
[341459855,1730907047507,-500.0,0.00028218,2]
[341459856,1730907047517,-500.0,0.00028218,2]
[341459857,1730907047526,-500.0,0.00028218,2]
[341459858,1730907047535,-500.0,0.00028218,2]
[341459859,1730907047545,-433.85330946,0.00028218,2]
[341459867,1730907206393,43547.74320717,0.00034288,32]
[341459870,1730907312302,1169.27083333,0.0002082,2]
[341459871,1730907615775,164.795937,0.00013973,2]
[341459873,1730907618493,173.505,0.00017233,2]
[341459875,1730907924980,1169.27083333,0.0002082,2]
[341459884,1730907958972,-166.666666,0.00023669,2]
[341459885,1730907958995,-365.887786,0.00024143,2]
[341459886,1730907959018,-441.215657,0.00024182,2]
[341459887,1730907959042,-166.666666,0.00024314,2]
[341459888,1730907959064,-3374.0089479,0.0002445,2]
[341459889,1730907959086,-1585.9145318,0.00024534,2]
[341459890,1730907959107,-160.47454949,0.00024658,2]
[341459891,1730907959129,-660.0,0.00024658,2]
[341459892,1730907959151,-365.887786,0.00024828,2]
[341459893,1730907959175,-300.0,0.00024958,2]
[341459894,1730907959197,-300.0,0.00024958,2]
[341459895,1730907959218,-166.666666,0.00024959,2]
[341459896,1730907959239,-365.887786,0.00025513,2]
[341459897,1730907959261,-166.666666,0.00025605,2]
[341459898,1730907959281,-450.33409777,0.00025992,2]
[341459899,1730907959302,-500.0,0.00025992,2]
[341459900,1730907959323,-160.64229731,0.00025992,2]
[341459901,1730907959345,-500.0,0.00025992,2]
[341459902,1730907959367,-500.0,0.00025992,2]
[341459903,1730907959388,-607.27358393,0.00025992,2]
[341459904,1730907959414,-500.0,0.00025992,2]
[341459905,1730907959436,-500.0,0.00025992,2]
[341459906,1730907959457,-500.0,0.00025992,2]
[341459907,1730907959480,-500.0,0.00025992,2]
[341459908,1730907959502,-500.0,0.00025992,2]
[341459909,1730907959525,-500.0,0.00025992,2]
[341459910,1730907959548,-500.0,0.00025992,2]
[341459911,1730907959576,-500.0,0.00025992,2]
[341459912,1730907959598,-500.0,0.00025992,2]
[341459913,1730907959620,-500.0,0.00025992,2]
[341459914,1730907959645,-500.0,0.00025992,2]
[341459915,1730907959671,-500.0,0.00025992,2]
[341459916,1730907959693,-500.0,0.00025992,2]
[341459917,1730907959716,-500.0,0.00025992,2]
[341459918,1730907959740,-500.0,0.00025992,2]
[341459919,1730907959762,-500.0,0.00025992,2]
[341459920,1730907959785,-500.0,0.00025992,2]
[341459921,1730907959808,-500.0,0.00025992,2]
[341459922,1730907959831,-500.0,0.00025992,2]
[341459923,1730907959853,-500.0,0.00025992,2]
[341459924,1730907959878,-500.0,0.00025992,2]
[341459925,1730907959900,-500.0,0.00025992,2]
[341459926,1730907959925,-500.0,0.00025992,2]
[341459927,1730907959947,-500.0,0.00025992,2]
[341459928,1730907959971,-500.0,0.00025992,2]
[341459929,1730907959994,-500.0,0.00025992,2]
[341459930,1730907960017,-500.0,0.00025992,2]
[341459931,1730907960039,-500.0,0.00025992,2]
[341459932,1730907960063,-500.0,0.00025992,2]
[341459933,1730907960085,-500.0,0.00025992,2]
[341459934,1730907960108,-500.0,0.00025992,2]
[341459935,1730907960131,-500.0,0.00025992,2]
[341459936,1730907960155,-500.0,0.00025992,2]
[341459937,1730907960181,-500.0,0.00025992,2]
[341459938,1730907960205,-500.0,0.00025992,2]
[341459939,1730907960229,-500.0,0.00025992,2]
[341459940,1730907960253,-500.0,0.00025992,2]
[341459941,1730907960279,-500.0,0.00025992,2]
[341459942,1730907960304,-500.0,0.00025992,2]
[341459943,1730907960328,-500.0,0.00025992,2]
[341459944,1730907960352,-500.0,0.00025992,2]
[341459945,1730907960377,-602.68672803,0.00025992,2]
[341459946,1730907960401,-500.0,0.00025992,2]
[341459947,1730907960435,-500.0,0.00025992,2]
[341459948,1730907960459,-232.11958477,0.00025992,2]
[341459949,1730907986691,500.0,0.00028,15]
[341459961,1730908125621,177.949379,0.00013973,2]
[341460021,1730908232120,-321.26914734,0.00024182,2]
[341460389,1730908238355,-371.985,0.00024182,2]
[341460390,1730908238435,-476.01668599,0.00024182,2]
[341460391,1730908238445,-174.17835161,0.00025507,2]
[341460392,1730908238454,-300.0,0.00025564,2]
[341460393,1730908238464,-300.0,0.00025564,2]
[341460394,1730908238474,-500.0,0.00025564,2]
[341460395,1730908238484,-500.0,0.00025564,2]
[341460396,1730908238493,-500.0,0.00025564,2]
[341460397,1730908238503,-500.0,0.00025564,2]
[341460398,1730908238514,-500.0,0.00025564,2]
[341460400,1730908238623,-413.36017839,0.00025564,2]
[341460401,1730908238663,-530.32850214,0.00025564,2]
[341460402,1730908238674,-500.0,0.00025564,2]
[341460403,1730908238683,-500.0,0.00025564,2]
[341460404,1730908238693,-500.0,0.00025564,2]
[341460405,1730908238703,-500.0,0.00025564,2]
[341460406,1730908238714,-500.0,0.00025564,2]
[341460407,1730908238725,-500.0,0.00025564,2]
[341460408,1730908238734,-500.0,0.00025564,2]
[341460409,1730908238744,-500.0,0.00025564,2]
[341460410,1730908238753,-500.0,0.00025564,2]
[341460411,1730908238763,-500.0,0.00025564,2]
[341460412,1730908238773,-500.0,0.00025564,2]
[341460413,1730908238782,-500.0,0.00025564,2]
[341460414,1730908238792,-500.0,0.00025564,2]
[341460415,1730908238801,-500.0,0.00025564,2]
[341460416,1730908238811,-500.0,0.00025564,2]
[341460418,1730908238821,-500.0,0.00025564,2]
[341460419,1730908238830,-398.25260489,0.00025564,2]
[341460420,1730908238840,-500.0,0.00025564,2]
[341460422,1730908238849,-500.0,0.00025564,2]
[341460424,1730908238859,-500.0,0.00025564,2]
[341460426,1730908238868,-500.0,0.00025564,2]
[341460428,1730908238877,-500.0,0.00025564,2]
[341460429,1730908238886,-500.0,0.00025564,2]
[341460431,1730908238896,-500.0,0.00025564,2]
[341460433,1730908238905,-500.0,0.00025564,2]
[341460435,1730908238914,-503.59454293,0.00025564,2]
[341460437,1730908238924,-500.0,0.00025564,2]
[341460439,1730908238933,-500.0,0.00025564,2]
[341460441,1730908238943,-500.0,0.00025564,2]
[341460443,1730908238952,-341.77768612,0.00025564,2]
[341460445,1730908238963,-500.0,0.00025564,2]
[341460447,1730908238972,-500.0,0.00025564,2]
[341460449,1730908238982,-275.58248649,0.00025564,2]
[341460451,1730908238992,-500.0,0.00025564,2]
[341460454,1730908239003,-24900.0,0.00025565,2]
[341460456,1730908239012,-169.475588,0.00025607,2]
[341460458,1730908239023,-194.47251314,0.00025925,2]
[341460460,1730908239033,-699.24154793,0.00026016,2]
[341460462,1730908239044,-7500.5587821,0.00026025,2]
[341460464,1730908239053,-166.666666,0.0002625,2]
[341460466,1730908239063,-300.22273184,0.00026847,2]
[341460468,1730908239072,-166.666666,0.00026895,2]
[341460470,1730908239082,-162.0,0.00027,2]
[341460472,1730908239091,-915.32190748,0.00027297,2]
[341460474,1730908239101,-476.7120774,0.00027317,2]
[341460476,1730908239112,-416.79852173,0.00027373,2]
[341460478,1730908239122,-261.1254018,0.00027373,2]
[341460480,1730908239132,-500.0,0.00027373,2]
[341460482,1730908239143,-500.0,0.00027373,2]
[341460484,1730908239152,-500.0,0.00027373,2]
[341460486,1730908239164,-500.0,0.00027373,2]
[341460488,1730908239173,-621.96835653,0.00027373,2]
[341460490,1730908239183,-449.77855225,0.00027373,2]
[341460492,1730908239193,-500.0,0.00027373,2]
[341460494,1730908239203,-500.0,0.00027373,2]
[341460496,1730908239213,-500.0,0.00027373,2]
[341460498,1730908239222,-500.0,0.00027373,2]
[341460500,1730908239234,-775.33,0.00027387,3]
[341460502,1730908239244,-180.86,0.00027387,3]
[341460504,1730908239254,-542.63,0.00027387,3]
[341460507,1730908239267,-163.23685768,0.00027396,2]
[341460509,1730908239276,-297.75814388,0.00027396,2]
[341460511,1730908239286,-500.0,0.00027397,2]
[341460513,1730908239295,-399.86010242,0.00027397,2]
[341460515,1730908239307,-500.0,0.00027397,2]
[341460517,1730908239317,-500.0,0.00027397,2]
[341460519,1730908239327,-500.0,0.00027397,2]
[341460521,1730908239336,-500.0,0.00027397,2]
[341460523,1730908239346,-500.0,0.00027397,2]
[341460525,1730908239357,-500.0,0.00027397,2]
[341460527,1730908239368,-500.0,0.00027397,2]
[341460529,1730908239379,-500.0,0.00027397,2]
[341460531,1730908239399,-500.0,0.00027397,2]
[341460533,1730908239412,-500.0,0.00027397,2]
[341460534,1730908239423,-500.0,0.00027397,2]
[341460535,1730908239434,-500.0,0.00027397,2]
[341460537,1730908239449,-597.10805352,0.00027397,2]
[341460538,1730908239459,-500.0,0.00027397,2]
[341460539,1730908239468,-500.0,0.00027397,2]
[341460540,1730908239478,-517.25695715,0.00027397,2]
[341460541,1730908239488,-564.02354214,0.00027397,2]
[341460542,1730908239499,-500.0,0.00027397,2]
[341460543,1730908239509,-500.0,0.00027397,2]
[341460544,1730908239519,-531.37375211,0.00027397,2]
[341460545,1730908239532,-500.0,0.00027397,2]
[341460546,1730908239542,-500.0,0.00027397,2]
[341460547,1730908239553,-500.0,0.00027397,2]
[341460548,1730908239564,-585.14912009,0.00027397,2]
[341460549,1730908239575,-500.0,0.00027397,2]
[341460551,1730908239584,-500.0,0.00027397,2]
[341460552,1730908239594,-500.0,0.00027397,2]
[341460553,1730908239604,-500.0,0.00027397,2]
[341460554,1730908239613,-500.0,0.00027397,2]
[341460555,1730908239623,-500.0,0.00027397,2]
[341460556,1730908239637,-500.0,0.00027397,2]
[341460558,1730908239646,-579.62626999,0.00027397,2]
[341460560,1730908239656,-520.70841967,0.00027397,2]
[341460562,1730908239665,-500.0,0.00027397,2]
[341460563,1730908239676,-505.03429272,0.00027397,2]
[341460564,1730908239687,-569.11211755,0.00027397,2]
[341460565,1730908239696,-500.0,0.00027397,2]
[341460566,1730908239706,-500.0,0.00027397,2]
[341460567,1730908239717,-339.85965465,0.00027397,2]
[341460569,1730908239728,-500.0,0.00027397,2]
[341460571,1730908239738,-505.03513103,0.00027397,2]
[341460573,1730908239748,-618.3,0.00027397,2]
[341460575,1730908239758,-500.0,0.00027397,2]
[341460577,1730908239769,-500.0,0.00027397,2]
[341460579,1730908239781,-503.39696246,0.00027397,2]
[341460581,1730908239791,-370.30943339,0.00027397,2]
[341460584,1730908239803,-500.0,0.00027397,2]
[341460585,1730908239813,-504.74556712,0.00027397,2]
[341460587,1730908239823,-500.0,0.00027397,2]
[341460589,1730908239833,-500.0,0.00027397,2]
[341460591,1730908239843,-500.0,0.00027397,2]
[341460593,1730908239853,-520.81378005,0.00027397,2]
[341460595,1730908239863,-519.24888867,0.00027397,2]
[341460597,1730908239872,-500.0,0.00027397,2]
[341460599,1730908239882,-500.0,0.00027397,2]
[341460601,1730908239892,-500.0,0.00027397,2]
[341460603,1730908239902,-500.0,0.00027397,2]
[341460605,1730908239912,-500.0,0.00027397,2]
[341460607,1730908239922,-508.65226021,0.00027397,2]
[341460609,1730908239932,-500.0,0.00027397,2]
[341460611,1730908239941,-500.0,0.00027397,2]
[341460613,1730908239952,-500.0,0.00027397,2]
[341460615,1730908239962,-500.0,0.00027397,2]
[341460617,1730908239972,-500.0,0.00027397,2]
[341460620,1730908239984,-500.0,0.00027397,2]
[341460622,1730908239996,-517.87198795,0.00027397,2]
[341460624,1730908240005,-500.0,0.00027397,2]
[341460626,1730908240015,-500.0,0.00027397,2]
[341460628,1730908240025,-500.0,0.00027397,2]
[341460630,1730908240036,-500.0,0.00027397,2]
[341460632,1730908240046,-500.0,0.00027397,2]
[341460634,1730908240057,-500.0,0.00027397,2]
[341460636,1730908240066,-500.0,0.00027397,2]
[341460638,1730908240077,-247.54,0.00027397,2]
[341460640,1730908240086,-501.72671402,0.00027397,2]
[341460642,1730908240098,-500.0,0.00027397,2]
[341460645,1730908240109,-507.61721567,0.00027397,2]
[341460647,1730908240119,-500.0,0.00027397,2]
[341460648,1730908240130,-500.0,0.00027397,2]
[341460649,1730908240140,-593.43821414,0.00027397,2]
[341460650,1730908240150,-500.0,0.00027397,2]
[341460651,1730908240160,-500.0,0.00027397,2]
[341460654,1730908240171,-500.0,0.00027397,2]
[341460656,1730908240181,-500.0,0.00027397,2]
[341460658,1730908240194,-508.88495406,0.00027397,2]
[341460660,1730908240205,-543.32057159,0.00027397,2]
[341460662,1730908240216,-500.0,0.00027397,2]
[341460664,1730908240226,-509.29596702,0.00027397,2]
[341460666,1730908240238,-509.840662,0.00027397,2]
[341460668,1730908240248,-509.86861745,0.00027397,2]
[341460670,1730908240258,-639.69912856,0.00027397,2]
[341460672,1730908240268,-500.0,0.00027397,2]
[341460674,1730908240279,-603.35458812,0.00027397,2]
[341460676,1730908240290,-500.0,0.00027397,2]
[341460678,1730908240300,-500.0,0.00027397,2]
[341460680,1730908240310,-500.0,0.00027397,2]
[341460682,1730908240320,-500.0,0.00027397,2]
[341460684,1730908240337,-500.0,0.00027397,2]
[341460686,1730908240347,-506.92665822,0.00027397,2]
[341460688,1730908240359,-500.0,0.00027397,2]
[341460689,1730908240370,-500.0,0.00027397,2]
[341460690,1730908240382,-500.0,0.00027397,2]
[341460691,1730908240393,-500.0,0.00027397,2]
[341460692,1730908240405,-500.0,0.00027397,2]
[341460693,1730908240416,-500.0,0.00027397,2]
[341460694,1730908240427,-500.0,0.00027397,2]
[341460696,1730908240437,-500.0,0.00027397,2]
[341460698,1730908240448,-500.0,0.00027397,2]
[341460700,1730908240459,-536.22913478,0.00027397,2]
[341460702,1730908240471,-500.0,0.00027397,2]
[341460704,1730908240483,-500.0,0.00027397,2]
[341460706,1730908240492,-500.0,0.00027397,2]
[341460708,1730908240502,-500.0,0.00027397,2]
[341460710,1730908240511,-500.0,0.00027397,2]
[341460712,1730908240520,-511.8290284,0.00027397,2]
[341460714,1730908240530,-500.0,0.00027397,2]
[341460716,1730908240543,-506.78733619,0.00027397,2]
[341460718,1730908240553,-151.8622092,0.00027397,2]
[341460720,1730908240563,-500.0,0.00027397,2]
[341460722,1730908240572,-530.10188665,0.00027397,2]
[341460724,1730908240581,-516.6406977,0.00027397,2]
[341460726,1730908240591,-984.70064036,0.00027397,2]
[341460728,1730908240600,-500.0,0.00027397,2]
[341460730,1730908240610,-576.10342839,0.00027397,2]
[341460731,1730908240619,-500.0,0.00027397,2]